fUSD/lending_fUSD_20251108
["ID","MTS","AMOUNT","RATE_DAILY","PERIOD"]
[393405470,1762601081113,-3610.1576,0.00016673,2]
[393405471,1762601081139,-10000.01,0.00016673,2]
[393405472,1762601081256,-10000.01,0.00016673,2]
[393405473,1762601081374,-10000.01,0.00016673,2]
[393405474,1762601084078,-500.0,0.00016672,2]
[393405475,1762601084117,-393.57021471,0.00016672,2]
[393405476,1762601084179,-8212.86957058,0.00016673,2]
[393405477,1762601084207,-10000.01,0.00016673,2]
[393405478,1762601100474,950.0,0.00038994,120]
[393405479,1762601119614,2726.48419525,9e-05,2]
[393405480,1762601145372,500.0,0.00038994,120]
[393405481,1762601145632,500.0,0.00038994,120]
[393405482,1762601145872,500.0,0.00038994,120]
[393405483,1762601146114,500.0,0.00038994,120]
[393405484,1762601146443,500.0,0.00038994,120]
[393405485,1762601146587,500.0,0.00038994,120]
[393405486,1762601146836,500.0,0.00038994,120]
[393405487,1762601147069,500.0,0.00038994,120]
[393405488,1762601147320,500.0,0.00038994,120]
[393405489,1762601147553,500.0,0.00038994,120]
[393405490,1762601147791,500.0,0.00038994,120]
[393405491,1762601148048,500.0,0.00038994,120]
[393405492,1762601148318,500.0,0.00038994,120]
[393405493,1762601148549,500.0,0.00038994,120]
[393405494,1762601148826,500.0,0.00038994,120]
[393405495,1762601149068,500.0,0.00038994,120]
[393405496,1762601149322,500.0,0.00038994,120]
[393405497,1762601149609,500.0,0.00038994,120]
[393405498,1762601149855,500.0,0.00038994,120]
[393405499,1762601150090,422.28415622,0.00038994,120]
[393405501,1762601214431,50168.3615291,0.000162,5]
[393405502,1762601273674,7273.52580475,0.00015,2]
[393405503,1762601273699,10000.01,0.00015,2]
[393405504,1762601273722,10000.01,0.00015,2]
[393405505,1762601273745,10000.01,0.00015,2]
[393405506,1762601273768,10000.01,0.00015,2]
[393405507,1762601273793,10000.01,0.00015,2]
[393405508,1762601273817,10000.01,0.00015,2]
[393405509,1762601273844,10000.01,0.00015,2]
[393405510,1762601273868,10000.01,0.00015,2]
[393405511,1762601273898,10000.01,0.00015,2]
[393405512,1762601273923,6475.80376913,0.00015,2]
[393405513,1762601273947,6475.80376913,0.00015,2]
[393405514,1762601273973,6475.80376913,0.00015,2]
[393405515,1762601274009,10565.73180698,0.00015,2]
[393405531,1762601431555,-151.0,0.000159,2]
[393405532,1762601431565,-151.0,0.0001593,2]
[393405533,1762601431574,-218.09,0.00016522,2]
[393405534,1762601431583,-512.81,0.00016572,2]
[393405535,1762601431594,-687.19,0.00016572,2]
[393405536,1762601431603,-397.11640199,0.00016573,2]
[393405537,1762601431614,-1761.49480591,0.00016573,2]
[393405538,1762601431771,-516.0670987,0.00016573,2]
[393405553,1762601437618,-1053.0201934,0.00016573,2]
[393405554,1762601437627,-526.5791,0.00016573,2]
[393405555,1762601437637,-671.0,0.00016659,2]
[393405556,1762601437646,-300.0,0.00016659,2]
[393405557,1762601437655,-300.0,0.00016659,2]
[393405558,1762601437664,-13242.54529723,0.0001666,2]
[393405559,1762601437673,-784.67,0.00016663,2]
[393405560,1762601437682,-784.67,0.00016663,2]
[393405561,1762601437691,-151.0,0.0001667,2]
[393405562,1762601437701,-12599.8948307,0.00016671,2]
[393405563,1762601437710,-350.0,0.00016671,2]
[393405564,1762601437719,-307.45218061,0.00016672,2]
[393405565,1762601437728,-500.0,0.00016672,2]
[393405566,1762601437737,-500.0,0.00016672,2]
[393405567,1762601437747,-554.91404803,0.00016672,2]
[393405568,1762601437757,-500.43798443,0.00016673,2]
[393405569,1762601437766,-500.0,0.00016673,2]
[393405570,1762601437775,-500.0,0.00016673,2]
[393405571,1762601437784,-500.0,0.00016673,2]
[393405572,1762601437793,-501.59027207,0.00016673,2]
[393405573,1762601437803,-500.84354259,0.00016673,2]
[393405574,1762601437812,-500.0,0.00016673,2]
[393405575,1762601437821,-500.0,0.00016673,2]
[393405576,1762601437830,-164.43538034,0.00016673,2]
[393405577,1762601437839,-500.0,0.00016673,2]
[393405578,1762601437848,-157.54471885,0.00016673,2]
[393405579,1762601437857,-500.0,0.00016673,2]
[393405580,1762601437866,-500.0,0.00016673,2]
[393405581,1762601437875,-500.0,0.00016673,2]
[393405582,1762601438057,-500.0,0.00016673,2]
[393405583,1762601438067,-368176.93282942,0.00016673,2]
[393405584,1762601438078,-13144.14627831,0.0001676,2]
[393405585,1762601438087,-2053.1200503,0.0001676,2]
[393405586,1762601438097,-413.28610036,0.0001676,2]
[393405587,1762601438107,-409.16,0.00017024,2]
[393405588,1762601438116,-500.0,0.00017221,2]
[393405589,1762601438126,-217.18810693,0.00017221,2]
[393405590,1762601438135,-500.0,0.00017221,2]
[393405591,1762601438144,-986.35532093,0.00017221,2]
[393405592,1762601438154,-500.0,0.00017221,2]
[393405593,1762601438164,-274.0,0.00017428,2]
[393405594,1762601438172,-500.0,0.00017489,2]
[393405595,1762601438182,-183.86217008,0.00017489,2]
[393405596,1762601438192,-300.62272235,0.0001749,2]
[393405597,1762601438202,-195.0,0.0001749,2]
[393405598,1762601438211,-300.0,0.0001749,2]
[393405599,1762601438221,-1500.0,0.000175,6]
[393405600,1762601438230,-13242.54529719,0.00017564,2]
[393405601,1762601438239,-250.0,0.00017578,2]
[393405602,1762601438248,-784.67,0.0001759,2]
[393405603,1762601438259,-3100.0,0.000176,6]
[393405604,1762601438269,-13144.14627823,0.00017642,2]
[393405605,1762601438280,-4700.0,0.000177,6]
[393405606,1762601438290,-150.0,0.00017794,2]
[393405607,1762601438299,-6300.0,0.000178,6]
[393405608,1762601438310,-7800.0,0.000179,6]
[393405609,1762601438320,-239.99488842,0.00017902,2]
[393405610,1762601438330,-2047.56194874,0.00017902,2]
[393405611,1762601438340,-386.48130404,0.00017973,2]
[393405612,1762601438350,-235.33606138,0.00017973,2]
[393405613,1762601438360,-501.50530848,0.00017973,2]
[393405614,1762601438370,-505.85898911,0.00017973,2]
[393405615,1762601438380,-501.39454671,0.00017973,2]
[393405616,1762601438390,-151.0,0.00017989,2]
[393405617,1762601438400,-151.0,0.00017989,2]
[393405618,1762601438410,-151.0,0.00017989,2]
[393405619,1762601438420,-151.0,0.00017989,2]
[393405620,1762601438430,-151.0,0.00017989,2]
[393405621,1762601438440,-151.0,0.00017989,2]
[393405622,1762601438449,-151.0,0.00017989,2]
[393405623,1762601438460,-151.0,0.00017989,2]
[393405624,1762601438470,-151.0,0.00017989,2]
[393405625,1762601438481,-151.0,0.00017989,2]
[393405626,1762601438490,-151.0,0.00017989,2]
[393405627,1762601438500,-151.0,0.00017989,2]
[393405628,1762601438511,-202.45775286,0.00017989,2]
[393405629,1762601438521,-151.0,0.00017989,2]
[393405630,1762601438531,-151.0,0.00017989,2]
[393405631,1762601438541,-151.0,0.00017989,2]
[393405632,1762601438552,-151.0,0.00017989,2]
[393405633,1762601438562,-151.0,0.00017989,2]
[393405634,1762601438572,-151.0,0.00017989,2]
[393405635,1762601438582,-151.0,0.00017989,2]
[393405636,1762601438592,-151.0,0.00017989,2]
[393405637,1762601438601,-151.0,0.00017989,2]
[393405638,1762601438611,-151.0,0.00017989,2]
[393405639,1762601438620,-151.0,0.00017989,2]
[393405640,1762601438630,-151.0,0.00017989,2]
[393405641,1762601438639,-151.0,0.00017989,2]
[393405642,1762601438648,-151.0,0.00017989,2]
[393405643,1762601438658,-288.21982376,0.00017989,2]
[393405644,1762601438667,-784.67,0.0001799,2]
[393405645,1762601438676,-784.67,0.0001799,2]
[393405646,1762601438685,-220.69628424,0.0001799,2]
[393405647,1762601438695,-220.69628424,0.0001799,2]
[393405648,1762601438704,-500.0,0.00017999,2]
[393405649,1762601438714,-500.0,0.00017999,2]
[393405650,1762601438724,-500.0,0.00017999,2]
[393405651,1762601438736,-500.0,0.00017999,2]
[393405652,1762601438746,-2065514.69759132,0.00018,2]
[393405674,1762601442900,-351.92194648,0.00018,2]
[393405682,1762601446029,-258.09599797,0.00018,2]
[393405683,1762601446084,-300251.28957423,0.00018,2]
[393405684,1762601446141,-16134.06998771,0.00018,2]
[393405710,1762601595484,1209.45268075,0.000301,120]
[393405712,1762601733356,210.75,0.00025955,120]
[393405714,1762601937314,250.0,0.000159,2]
[393405715,1762601947370,220.0,0.00030137,120]
[393405716,1762601977932,520.6,8.604e-05,2]
[393405717,1762601978127,520.6,9.039e-05,2]
[393405718,1762601978324,520.6,9.474e-05,2]
[393405719,1762601978521,520.6,9.909e-05,2]
[393405720,1762601978725,520.6,0.00010344,2]
[393405721,1762601978935,520.6,0.00010779,2]
[393405722,1762601979141,520.6,0.00011214,2]
[393405723,1762601979370,520.6,0.00011649,2]
[393405724,1762601979571,520.6,0.00012084,2]
[393405725,1762601979782,520.6,0.00012519,2]
[393405726,1762601980025,520.6,0.00012954,2]
[393405727,1762601980241,520.6,0.00013389,2]
[393405728,1762601980453,520.6,0.00013824,2]
[393405729,1762601980646,520.6,0.00014259,2]
[393405730,1762601980879,520.6,0.00014695,2]
[393405731,1762601981074,520.6,0.0001513,2]
[393405732,1762601981483,520.6,0.00015565,2]
[393405733,1762601985529,-151.81550258,0.00016,2]
[393405734,1762601987888,-247.00997466,0.00016,2]
[393405735,1762602117948,150.0,0.00038999,30]
[393405737,1762602485573,39639.65017299,0.00039002,30]
[393405738,1762602485897,60000.0,0.00039002,30]
[393405739,1762602500840,100000.0,0.00039002,30]
[393405749,1762602631736,-121.77452276,0.00016,2]
[393405750,1762602631746,-329.23770299,0.00016109,2]
[393405751,1762602631756,-250.0,0.00016109,2]
[393405752,1762602631766,-334.13065114,0.00016274,2]
[393405753,1762602631789,-665.86934886,0.00016274,2]
[393405754,1762602631798,-250.0,0.00016335,2]
[393405755,1762602631808,-213.93,0.00016384,2]
[393405756,1762602631818,-520.6,0.00016435,2]
[393405757,1762602631827,-501.73286396,0.00016438,2]
[393405758,1762602631836,-224.86764211,0.000165,2]
[393405759,1762602631845,-354.2572,0.00016572,2]
[393405760,1762602631854,-1698.71582491,0.00016572,2]
[393405761,1762602631866,-1065.69718105,0.00016572,2]
[393405762,1762602631875,-1085.1018,0.00016658,2]
[393405763,1762602631884,-1200.0,0.00016667,2]
[393405764,1762602631893,-300.0,0.00016668,2]
[393405765,1762602631902,-300.0,0.00016668,2]
[393405766,1762602631912,-1200.0,0.00016669,2]
[393405767,1762602631921,-550.0,0.0001667,2]
[393405768,1762602631931,-8692.33,0.00016671,2]
[393405769,1762602631939,-4089.81,0.00016671,2]
[393405770,1762602631948,-9999.99,0.00016671,2]
[393405771,1762602631957,-500.0,0.00016671,2]
[393405772,1762602631966,-500.0,0.00016671,2]
[393405773,1762602631975,-500.0,0.00016671,2]
[393405774,1762602631984,-500.0,0.00016671,2]
[393405775,1762602631993,-500.0,0.00016671,2]
[393405776,1762602632002,-500.0,0.00016671,2]
[393405777,1762602632011,-500.0,0.00016671,2]
[393405778,1762602632021,-456.38880462,0.00016671,2]
[393405779,1762602632030,-500.0,0.00016671,2]
[393405780,1762602632039,-500.0,0.00016671,2]
[393405781,1762602632048,-500.0,0.00016671,2]
[393405782,1762602632057,-500.0,0.00016671,2]
[393405784,1762602632067,-500.0,0.00016671,2]
[393405786,1762602632076,-500.0,0.00016671,2]
[393405788,1762602632085,-500.0,0.00016671,2]
[393405789,1762602632095,-287.99296913,0.00016671,2]
[393405790,1762602632104,-500.0,0.00016671,2]
[393405791,1762602632113,-500.0,0.00016671,2]
[393405792,1762602632122,-500.0,0.00016671,2]
[393405793,1762602632130,-500.0,0.00016671,2]
[393405794,1762602632139,-500.0,0.00016671,2]
[393405795,1762602632148,-500.0,0.00016671,2]
[393405796,1762602632157,-408.08801633,0.00016671,2]
[393405797,1762602632166,-500.0,0.00016671,2]
[393405798,1762602632175,-500.0,0.00016671,2]
[393405799,1762602632184,-500.0,0.00016671,2]
[393405800,1762602632193,-500.0,0.00016672,2]
[393405801,1762602632204,-500.0,0.00016672,2]
[393405802,1762602632213,-9999.99,0.00016672,2]
[393405803,1762602632223,-150.99,0.00016672,2]
[393405804,1762602632231,-9999.99,0.00016672,2]
[393405805,1762602632240,-150.99,0.00016672,2]
[393405806,1762602632251,-81683.15,0.00016672,2]
[393405807,1762602632260,-999.99,0.00016672,2]
[393405808,1762602632269,-500.0,0.00016673,2]
[393405809,1762602632279,-500.0,0.00016673,2]
[393405810,1762602632288,-500.0,0.00016673,2]
[393405811,1762602632297,-500.0,0.00016673,2]
[393405812,1762602632309,-616.72412862,0.00016673,2]
[393405813,1762602632320,-500.0,0.00016673,2]
[393405814,1762602632329,-500.0,0.00016673,2]
[393405815,1762602632339,-500.0,0.00016673,2]
[393405816,1762602632348,-506.43722381,0.00016673,2]
[393405817,1762602632357,-500.0,0.00016673,2]
[393405818,1762602632367,-520.6,0.0001687,2]
[393405819,1762602632376,-151.0,0.00017009,2]
[393405820,1762602632386,-151.0,0.00017009,2]
[393405821,1762602632395,-151.0,0.00017009,2]
[393405822,1762602632404,-151.0,0.00017009,2]
[393405823,1762602632413,-151.0,0.00017009,2]
[393405824,1762602632423,-151.0,0.00017009,2]
[393405825,1762602632431,-151.0,0.00017009,2]
[393405826,1762602632441,-151.0,0.00017009,2]
[393405827,1762602632449,-151.0,0.00017009,2]
[393405828,1762602632458,-151.0,0.00017009,2]
[393405829,1762602632468,-151.0,0.00017009,2]
[393405830,1762602632477,-151.0,0.00017009,2]
[393405831,1762602632486,-151.0,0.00017009,2]
[393405832,1762602632495,-151.0,0.00017009,2]
[393405833,1762602632504,-151.0,0.00017009,2]
[393405834,1762602632513,-151.0,0.00017009,2]
[393405835,1762602632522,-151.0,0.00017009,2]
[393405836,1762602632531,-202.45775286,0.00017009,2]
[393405837,1762602632541,-151.0,0.00017009,2]
[393405838,1762602632551,-151.0,0.00017009,2]
[393405839,1762602632560,-151.0,0.00017009,2]
[393405840,1762602632569,-151.0,0.00017009,2]
[393405841,1762602632579,-151.0,0.00017009,2]
[393405842,1762602632588,-151.0,0.00017009,2]
[393405843,1762602632597,-151.0,0.00017009,2]
[393405844,1762602632606,-151.0,0.00017009,2]
[393405845,1762602632615,-151.0,0.00017009,2]
[393405846,1762602632625,-151.0,0.00017009,2]
[393405847,1762602632634,-288.21982376,0.00017009,2]
[393405848,1762602632643,-2751.0,0.00017019,2]
[393405849,1762602632652,-486.35532093,0.00017221,2]
[393405850,1762602632661,-217.18810693,0.00017221,2]
[393405851,1762602632671,-173.12,0.00017274,2]
[393405852,1762602632680,-210.75,0.00017303,2]
[393405853,1762602632690,-1753.43,0.00017457,2]
[393405854,1762602632699,-746.28376664,0.0001759,2]
[393405855,1762602632709,-300.0,0.000176,2]
[393405856,1762602632719,-250.0,0.000176,2]
[393405857,1762602632729,-195.0,0.000176,2]
[393405858,1762602632740,-195.0,0.000176,2]
[393405859,1762602632753,-300.0,0.000176,2]
[393405860,1762602632763,-300.62272235,0.000176,2]
[393405861,1762602632775,-1700.0,0.000177,6]
[393405862,1762602632785,-204.9431179,0.00017756,2]
[393405863,1762602632795,-245.0,0.0001777,2]
[393405864,1762602632805,-13565.79926962,0.000178,2]
[393405865,1762602632815,-3147.9312,0.000178,2]
[393405866,1762602632824,-3400.0,0.000178,6]
[393405867,1762602632833,-500.0,0.00017873,2]
[393405868,1762602632843,-500.0,0.00017873,2]
[393405869,1762602632852,-501.50530848,0.00017873,2]
[393405870,1762602632861,-505.85898911,0.00017873,2]
[393405871,1762602632870,-235.33606138,0.00017873,2]
[393405872,1762602632880,-501.39454671,0.00017873,2]
[393405873,1762602632889,-386.48130404,0.00017873,2]
[393405874,1762602632899,-2500.0,0.00017873,2]
[393405875,1762602632908,-151.0,0.00017897,2]
[393405876,1762602632917,-244.03,0.00017899,2]
[393405877,1762602632926,-500.0,0.00017899,2]
[393405878,1762602632935,-42448.95687513,0.000179,2]
[393405879,1762602632947,-23452.28384511,0.000179,2]
[393405880,1762602632958,-39991.44087976,0.000179,2]
[393405881,1762602632967,-165.54080216,0.000179,2]
[393405882,1762602632976,-491.6054504,0.000179,2]
[393405883,1762602632985,-4683.99589447,0.000179,6]
[393405884,1762602632999,-366.13195705,0.000179,6]
[393405885,1762602633010,-49.87214848,0.000179,6]
[393405886,1762602633020,-13614.36625492,0.000179,2]
[393405887,1762602633029,-283.97811485,0.00017947,2]
[393405888,1762602633039,-500.0,0.00017973,2]
[393405889,1762602633048,-500.0,0.00017973,2]
[393405890,1762602633057,-500.39414892,0.00017973,2]
[393405891,1762602633066,-500.48756582,0.00017973,2]
[393405892,1762602633076,-500.0,0.00017973,2]
[393405893,1762602633085,-501.04587818,0.00017973,2]
[393405894,1762602633094,-500.41383408,0.00017973,2]
[393405895,1762602633103,-301.00328597,0.0001799,2]
[393405896,1762602633113,-738.8883573,0.00017999,2]
[393405897,1762602633123,-2213.55041147,0.00017999,2]
[393405898,1762602633133,-517.01695779,0.00017999,2]
[393405900,1762602637698,-1600.37879284,0.00017999,2]
[393405901,1762602637707,-1524.62120716,0.00017999,2]
[393405902,1762602637753,-447.66174487,0.00017999,2]
[393405903,1762602637766,-16205.09242857,0.00017999,2]
[393405904,1762602637776,-500.0,0.00017999,2]
[393405905,1762602637785,-574.14159547,0.00017999,2]
[393405906,1762602637795,-500.0,0.00017999,2]
[393405907,1762602637804,-500.0,0.00017999,2]
[393405908,1762602637814,-443.73507614,0.00017999,2]
[393405909,1762602637823,-500.0,0.00017999,2]
[393405910,1762602637834,-500.0,0.00017999,2]
[393405911,1762602637844,-500.0,0.00017999,2]
[393405912,1762602637854,-500.0,0.00017999,2]
[393405913,1762602637864,-500.0,0.00017999,2]
[393405914,1762602637874,-500.0,0.00017999,2]
[393405915,1762602637884,-500.0,0.00017999,2]
[393405916,1762602637894,-500.0,0.00017999,2]
[393405917,1762602637904,-500.0,0.00017999,2]
[393405918,1762602637915,-522.47521665,0.00017999,2]
[393405919,1762602637925,-500.0,0.00017999,2]
[393405920,1762602637934,-500.0,0.00017999,2]
[393405921,1762602637944,-500.0,0.00017999,2]
[393405922,1762602637954,-500.0,0.00017999,2]
[393405923,1762602637964,-500.0,0.00017999,2]
[393405925,1762602637974,-500.0,0.00017999,2]
[393405927,1762602637983,-478.70351905,0.00017999,2]
[393405929,1762602637992,-150.0,0.00017999,2]
[393405931,1762602638004,-249.4234813,0.00017999,2]
[393405933,1762602638014,-1481680.51421226,0.00018,2]
[393405935,1762602638024,-918.3114455,0.00018,2]
[393405937,1762602638034,-174.66931,0.00018,2]
[393405939,1762602638044,-244.03,0.00018173,2]
[393405941,1762602638054,-420.0,0.00018211,2]
[393405943,1762602638063,-404.0,0.00018211,2]
[393405945,1762602638073,-1200.0,0.00018212,2]
[393405947,1762602638083,-1200.0,0.00018301,2]
[393405949,1762602638092,-1000.0,0.00018308,2]
[393405951,1762602638101,-22549.77313396,0.00018308,2]
[393405953,1762602638111,-2637.41,0.00018371,2]
[393405954,1762602638121,-300.0,0.00018412,2]
[393405957,1762602638131,-500.0,0.00018421,2]
[393405958,1762602638140,-244.04,0.00018447,2]
[393405960,1762602638151,-215.6,0.00018488,2]
[393405961,1762602638160,-999.0,0.00018655,3]
[393405962,1762602638171,-150.12,0.000188,2]
[393405963,1762602638180,-150.12,0.000188,2]
[393405964,1762602638190,-150.12,0.000188,2]
[393405965,1762602638200,-150.12,0.000188,2]
[393405966,1762602638211,-150.12,0.000188,2]
[393405967,1762602638220,-150.12,0.000188,2]
[393405968,1762602638230,-150.12,0.000188,2]
[393405969,1762602638240,-150.12,0.000188,2]
[393405970,1762602638250,-150.12,0.000188,2]
[393405971,1762602638260,-150.12,0.000188,2]
[393405972,1762602638270,-150.12,0.000188,2]
[393405973,1762602638280,-150.12,0.000188,2]
[393405974,1762602638292,-150.0,0.00018811,2]
[393405975,1762602638303,-150.0,0.00018811,2]
[393405976,1762602638314,-150.0,0.00018811,2]
[393405977,1762602638325,-1000.0,0.00018811,2]
[393405978,1762602638335,-150.0,0.00018948,2]
[393405979,1762602638345,-1000.0,0.00019517,2]
[393405980,1762602638356,-152.83891669,0.00019596,2]
[393405981,1762602638365,-300.0,0.00019782,2]
[393405982,1762602638375,-587.0,0.00019898,2]
[393405983,1762602638384,-174.66932,0.0002,2]
[393405984,1762602638394,-13565.79926957,0.00020145,2]
[393405985,1762602638404,-3821.885,0.00020145,2]
[393405986,1762602638414,-179.365,0.00020145,2]
[393405987,1762602638423,-150.12,0.0002018,2]
[393405988,1762602638432,-478.09862864,0.00020183,2]
[393405989,1762602638442,-2811.4165514,0.00020191,2]
[393405990,1762602638451,-1000.0,0.00020222,2]
[393405991,1762602638461,-491.60545038,0.00020234,2]
[393405992,1762602638470,-13614.36625487,0.00020234,2]
[393405993,1762602638480,-150.12,0.00020259,2]
[393405994,1762602638489,-500.0,0.00020269,2]
[393405995,1762602638499,-92902.76,0.00020269,2]
[393405996,1762602638511,-966.3647107,0.00020279,2]
[393405997,1762602638521,-4055.9206797,0.00020279,2]
[393405998,1762602638530,-1000.0,0.00020342,2]
[393405999,1762602638540,-835.09,0.00020513,2]
[393406000,1762602638550,-500.0,0.0002063,2]
[393406001,1762602638560,-215.6251126,0.00020787,2]
[393406002,1762602638569,-904.9982308,0.00020788,2]
[393406003,1762602638579,-266.77334569,0.00020845,5]
[393406004,1762602638589,-1000.0,0.00020927,2]
[393406005,1762602638598,-150.12,0.00020966,2]
[393406006,1762602638608,-627.3118253,0.00020976,2]
[393406007,1762602638618,-694.92554542,0.0002152,2]
[393406008,1762602638627,-250.0,0.00021562,2]
[393406009,1762602638637,-1000.0,0.00021633,2]
[393406010,1762602638646,-823.0,0.0002174,2]
[393406011,1762602638656,-174.66932,0.00022,2]
[393406012,1762602638666,-500.0,0.00022053,2]
[393406013,1762602638675,-882.0,0.00022249,2]
[393406014,1762602638685,-1000.0,0.00022376,2]
[393406015,1762602638699,-13565.79926957,0.00022489,2]
[393406016,1762602638709,-151.0,0.00022491,7]
[393406017,1762602638719,-151.0,0.00022491,7]
[393406018,1762602638729,-151.0,0.00022567,7]
[393406019,1762602638739,-151.0,0.00022567,7]
[393406020,1762602638750,-491.60545038,0.00022567,2]
[393406021,1762602638760,-13614.36625487,0.00022567,2]
[393406022,1762602638770,-151.0,0.00022578,7]
[393406023,1762602638780,-157.108984,0.00022578,7]
[393406024,1762602638790,-565.402651,0.00022578,7]
[393406025,1762602638800,-565.402651,0.00022578,7]
[393406026,1762602638810,-206.98,0.00022625,2]
[393406027,1762602638820,-691.67347473,0.00022859,2]
[393406028,1762602638830,-159.945,0.00022959,2]
[393406029,1762602638840,-607.0,0.00022959,2]
[393406030,1762602638849,-574.0,0.00022959,2]
[393406031,1762602638859,-1316.0,0.00022959,2]
[393406032,1762602638869,-3424.0,0.00022959,2]
[393406033,1762602638878,-1596.0,0.00022959,2]
[393406034,1762602638887,-820.0,0.00022959,2]
[393406035,1762602638897,-1273.0,0.00022959,2]
[393406036,1762602638907,-812.0,0.00022959,2]
[393406037,1762602638916,-151.0,0.00022959,7]
[393406038,1762602638926,-151.0,0.00022959,7]
[393406039,1762602638935,-151.0,0.00022959,7]
[393406040,1762602638945,-4407.347,0.00022959,2]
[393406041,1762602638954,-2142.001,0.00022959,2]
[393406042,1762602638964,-6660.0,0.00022959,2]
[393406043,1762602638974,-500.0,0.00023315,2]
[393406044,1762602638984,-150.12,0.00023743,2]
[393406045,1762602638993,-5000.0,0.00023753,2]
[393406046,1762602639003,-1152.0,0.00023753,2]
[393406047,1762602639014,-2000.0,0.00024,2]
[393406048,1762602639024,-200.0,0.00024327,2]
[393406049,1762602639033,-1000.0,0.00024411,2]
[393406050,1762602639043,-1000.0,0.00024658,2]
[393406051,1762602639053,-150.12,0.0002479,2]
[393406052,1762602639062,-150.12,0.0002479,2]
[393406053,1762602639072,-150.12,0.0002479,2]
[393406054,1762602639082,-150.12,0.0002479,2]
[393406055,1762602639092,-150.12,0.0002479,2]
[393406056,1762602639102,-150.12,0.0002479,2]
[393406057,1762602639112,-150.12,0.0002479,2]
[393406058,1762602639121,-150.12,0.0002479,2]
[393406059,1762602639131,-150.12,0.0002479,2]
[393406060,1762602639141,-150.12,0.0002479,2]
[393406061,1762602639150,-500.0,0.00024799,2]
[393406062,1762602639160,-500.0,0.00024799,2]
[393406063,1762602639171,-500.0,0.00024799,2]
[393406064,1762602639182,-8562.36,0.000248,7]
[393406065,1762602639191,-151.0,0.000248,7]
[393406066,1762602639201,-565.402651,0.000248,7]
[393406067,1762602639211,-565.402651,0.000248,7]
[393406068,1762602639221,-377664.02348977,0.000248,3]
[393406069,1762602639265,-554.89727071,0.000248,3]
[393406074,1762602639858,-307.780311,0.00022567,7]
[393406075,1762602639868,-6818.59551595,0.000248,3]
[393406076,1762602639913,-473.93335833,0.000248,3]
[393406077,1762602639970,-3919.1628,0.000248,3]
[393406078,1762602639983,-606.64343838,0.000248,3]
[393406079,1762602639995,-1162.31644101,0.000248,3]
[393406080,1762602640008,-683.95731502,0.000248,3]
[393406081,1762602640019,-4933.99024006,0.000248,3]
[393406082,1762602640032,-2835.8880102,0.000248,3]
[393406083,1762602640044,-3003.69315495,0.000248,3]
[393406084,1762602640056,-460.38513796,0.000248,3]
[393406085,1762602640088,-5126.782212,0.000248,3]
[393406086,1762602640099,-1183.02511855,0.000248,3]
[393406087,1762602640112,-211149.85844711,0.000248,3]
[393406088,1762602640123,-151.0,0.000248,7]
[393406089,1762602640134,-151.0,0.000248,7]
[393406090,1762602640143,-151.0,0.000248,7]